bitfinex-derivatives/quotes_BTCF0:USTF0_20241203
["timestamp","ask_amount","ask_price","bid_price","bid_amount"]
[1733219544468,0.052481,95251.0,95250.0,1.0]
[1733219544673,0.20963768,95251.0,95250.0,1.0]
[1733219545255,0.20973866,95251.0,95250.0,1.0]
[1733219546666,0.21073866,95251.0,95250.0,1.0]
[1733219547457,0.21173866,95251.0,95250.0,1.0]
[1733219554458,0.21173866,95251.0,95250.0,1.052481]
[1733219555563,0.15925766,95251.0,95250.0,1.052481]
[1733219556465,0.15925766,95251.0,95250.0,1.08236165]
[1733219556860,0.21173866,95251.0,95250.0,1.08236165]
[1733219559365,0.21173866,95251.0,95250.0,1.052481]
[1733219561184,0.21173866,95251.0,95250.0,1.0]
[1733219562591,0.34437866,95251.0,95250.0,1.0]
[1733219564283,0.34337866,95251.0,95250.0,1.0]
[1733219565782,0.34237866,95251.0,95250.0,1.0]
[1733219566480,0.34237866,95251.0,95250.0,0.70062458]
[1733219569479,0.34237866,95251.0,95250.0,0.40124916]
[1733219572283,0.34237866,95251.0,95239.0,0.00010299]
[1733219572494,0.413288,95240.0,95239.0,0.00010299]
[1733219572988,0.57016605,95240.0,95239.0,0.00010299]
[1733219573180,0.93096605,95240.0,95239.0,0.00010299]
[1733219573693,0.93196605,95240.0,95239.0,0.00010299]
[1733219575282,0.96103514,95240.0,95239.0,0.00010299]
[1733219577597,0.93196605,95240.0,95239.0,0.00010299]
[1733219594600,0.57116605,95240.0,95239.0,0.00010299]
[1733219613708,0.70124605,95240.0,95239.0,0.00010299]
[1733219616316,0.57116605,95240.0,95239.0,0.00010299]
[1733219617312,0.57116605,95240.0,95239.0,0.05259199]
[1733219618315,0.57116605,95240.0,95239.0,0.08399199]
[1733219620612,0.51867805,95240.0,95239.0,0.11679199]
[1733219620819,0.51867805,95240.0,95239.0,0.14929199]
[1733219623618,0.00010098,95251.0,95246.0,0.052485]
[1733219623818,0.00132,95275.0,95272.0,0.052471]
[1733219623819,0.0157,95273.0,95272.0,0.052471]
[1733219624024,0.3608,95276.0,95275.0,0.052469]
[1733219624511,0.00157499,95279.0,95278.0,0.052468]
[1733219624914,0.15943525,95279.0,95278.0,0.052468]
[1733219625811,0.15943525,95279.0,95278.0,0.08156268]
[1733219627024,0.16043525,95279.0,95278.0,0.08156268]
[1733219627520,0.15943525,95279.0,95278.0,0.08156268]
[1733219627724,0.00107436,95279.0,95278.0,0.08156268]
[1733219629423,0.00207436,95279.0,95278.0,0.08156268]
[1733219629817,0.00107436,95279.0,95278.0,0.08156268]
[1733219632523,0.00207436,95279.0,95278.0,0.08156268]
[1733219632925,0.00307436,95279.0,95278.0,0.08156268]
[1733219634120,7.436e-05,95279.0,95278.0,0.08356268]
[1733219635829,0.00207436,95279.0,95278.0,0.08256268]
[1733219636335,0.00407436,95279.0,95278.0,0.08156268]
[1733219636937,0.00307436,95279.0,95278.0,0.08156268]
[1733219637136,0.05754136,95279.0,95278.0,0.08156268]
[1733219637433,0.00507436,95279.0,95278.0,0.08156268]
[1733219639025,0.05854136,95279.0,95278.0,0.08156268]
[1733219640222,0.05454136,95279.0,95278.0,0.08156268]
[1733219640431,0.05854136,95279.0,95278.0,0.08156268]
[1733219640831,0.05454136,95279.0,95278.0,0.08156268]
[1733219641034,0.05854136,95279.0,95278.0,0.08156268]
[1733219644034,0.05254136,95279.0,95278.0,0.08156268]
[1733219644230,0.06354136,95279.0,95278.0,0.08256268]
[1733219645334,0.01107436,95279.0,95278.0,0.08256268]
[1733219647334,0.00707436,95279.0,95278.0,0.08256268]
[1733219647639,0.00907436,95279.0,95278.0,0.08256268]
[1733219649028,0.00707436,95279.0,95278.0,0.08256268]
[1733219649229,0.01107436,95279.0,95278.0,0.08256268]
[1733219649431,0.01107436,95279.0,95278.0,0.08156268]
[1733219649432,0.00407436,95279.0,95278.0,0.08156268]
[1733219649629,0.00707436,95279.0,95278.0,0.08156268]
[1733219649831,0.00507436,95279.0,95278.0,0.08156268]
[1733219650637,0.00407436,95279.0,95278.0,0.08156268]
[1733219650833,0.00607436,95279.0,95278.0,0.08156268]
[1733219652334,0.00707436,95279.0,95278.0,0.08156268]
[1733219652836,0.00307436,95279.0,95278.0,0.08156268]
[1733219653028,0.00907436,95279.0,95278.0,0.08256268]
[1733219653429,0.00307436,95279.0,95278.0,0.08156268]
[1733219653625,0.01007436,95279.0,95278.0,0.21196268]
[1733219654234,0.00907436,95279.0,95278.0,0.21196268]
[1733219654938,0.01007436,95279.0,95278.0,0.21196268]
[1733219655133,0.00707436,95279.0,95278.0,0.21196268]
[1733219655327,0.01007436,95279.0,95278.0,0.21196268]
[1733219660931,0.00907436,95279.0,95278.0,0.21196268]
[1733219662138,0.00607436,95279.0,95278.0,0.21196268]
[1733219662337,0.00907436,95279.0,95278.0,0.21196268]
[1733219662537,0.01107436,95279.0,95278.0,0.21196268]
[1733219663048,0.36387436,95279.0,95278.0,0.21096268]
[1733219663241,0.37087436,95279.0,95278.0,0.21196268]
[1733219664247,0.36987436,95279.0,95278.0,0.21196268]
[1733219665342,0.36887436,95279.0,95278.0,0.21196268]
[1733219665752,0.36287436,95279.0,95278.0,0.21096268]
[1733219665944,0.36887436,95279.0,95278.0,0.21196268]
[1733219680254,0.36887436,95279.0,95278.0,0.08256268]
[1733219680758,0.36887436,95279.0,95278.0,0.21196268]
[1733219682247,0.36887436,95279.0,95278.0,0.08256268]
[1733219682446,0.36887436,95279.0,95278.0,0.21148268]
[1733219684254,0.00807436,95279.0,95278.0,0.21148268]
[1733219684658,0.3608,95289.0,95278.0,0.21148268]
[1733219684659,0.3608,95289.0,95288.0,0.052463]
[1733219684853,0.3608,95289.0,95288.0,0.181383]
[1733219685563,0.36092718,95289.0,95288.0,0.181383]
[1733219685750,0.36592718,95289.0,95288.0,0.181383]
[1733219686156,0.37492718,95289.0,95288.0,0.182383]
[1733219687062,0.37492718,95289.0,95288.0,0.21164138]
[1733219687651,0.37492718,95289.0,95288.0,0.08272138]
[1733219687856,0.37492718,95289.0,95288.0,0.21164138]
[1733219697557,0.37492718,95289.0,95288.0,0.23264157]
[1733219699162,0.01412718,95289.0,95288.0,0.23264157]
[1733219701966,0.01412718,95289.0,95288.0,0.23364157]
[1733219702567,0.01412718,95289.0,95288.0,0.23264157]
[1733219702568,0.00512718,95289.0,95288.0,0.23264157]
[1733219702765,0.00512718,95289.0,95288.0,0.23364157]
[1733219702766,0.01412718,95289.0,95288.0,0.23364157]
[1733219704362,0.01412718,95289.0,95288.0,0.10472157]
[1733219704666,0.01412718,95289.0,95288.0,0.23364157]
[1733219707275,0.01412718,95289.0,95288.0,0.10472157]
[1733219707576,0.37492718,95289.0,95288.0,0.10472157]
[1733219712577,0.3608,95298.0,95297.0,0.052458]
[1733219712769,0.3608,95298.0,95297.0,0.181338]
[1733219713477,0.3608,95307.0,95306.0,0.052453]
[1733219713781,0.3608,95307.0,95306.0,0.181333]
[1733219715066,0.3698,95307.0,95306.0,0.21191769]
[1733219715273,0.3788,95307.0,95306.0,0.21291769]
[1733219718080,0.43128,95307.0,95306.0,0.21291769]
[1733219719477,0.07048,95307.0,95306.0,0.21291769]
[1733219720080,0.018,95307.0,95306.0,0.21303962]
[1733219721587,0.009,95307.0,95306.0,0.21403962]
[1733219721791,0.3608,95319.0,95318.0,0.052446]
[1733219721976,0.3608,95319.0,95318.0,0.181326]
[1733219723482,0.3608,95319.0,95318.0,0.21036063]
[1733219724478,0.3658,95319.0,95318.0,0.21036063]
[1733219724885,0.3678,95319.0,95318.0,0.21036063]
[1733219725189,0.3688,95319.0,95318.0,0.21036063]
[1733219725682,0.3628,95319.0,95318.0,0.21036063]
[1733219725888,0.3688,95319.0,95318.0,0.21036063]
[1733219730687,0.3688,95319.0,95314.0,0.0026]
[1733219730894,0.052447,95316.0,95315.0,0.181327]
[1733219731788,0.052447,95316.0,95315.0,0.052447]
[1733219732788,0.058447,95316.0,95315.0,0.052447]
[1733219734078,0.052447,95316.0,95315.0,0.052447]
[1733219734285,0.052447,95316.0,95315.0,0.053447]
[1733219734286,0.062447,95316.0,95315.0,0.053447]
[1733219735090,0.062447,95316.0,95315.0,0.07444186]
[1733219735282,0.055447,95316.0,95315.0,0.07344186]
[1733219735489,0.062447,95316.0,95315.0,0.07444186]
[1733219737595,0.063447,95316.0,95315.0,0.07444186]
[1733219740586,0.011,95316.0,95315.0,0.07444186]
[1733219740993,0.011,95316.0,95315.0,0.20332186]
[1733219747693,0.011,95316.0,95315.0,0.23382186]
[1733219753800,0.011,95316.0,95315.0,0.26402186]
[1733219757301,0.3608,95328.0,95327.0,0.052441]
[1733219757608,0.3608,95328.0,95327.0,0.181281]
[1733219758409,0.3678,95328.0,95327.0,0.182281]
[1733219758907,0.3768,95328.0,95327.0,0.183281]
[1733219760408,0.3628,95328.0,95327.0,0.182281]
[1733219761107,0.3618,95328.0,95327.0,0.21150815]
[1733219763512,0.3608,95328.0,95327.0,0.21150815]
[1733219763710,0.3638,95328.0,95327.0,0.21150815]
[1733219764110,0.3638,95328.0,95327.0,0.08266815]
[1733219764418,0.3638,95328.0,95327.0,0.21150815]
[1733219764419,0.3628,95328.0,95327.0,0.21150815]
[1733219765106,0.3608,95328.0,95327.0,0.21150815]
[1733219765307,0.3628,95328.0,95327.0,0.21150815]
[1733219769706,0.3628,95328.0,95327.0,0.23250227]
[1733219770308,0.415241,95328.0,95327.0,0.23250227]
[1733219771011,0.415241,95328.0,95327.0,0.10366227]
[1733219771217,0.415241,95328.0,95327.0,0.23250227]
[1733219773515,0.415241,95328.0,95327.0,0.23246227]
[1733219773715,0.415241,95328.0,95327.0,0.02099412]
[1733219775312,0.57155944,95328.0,95327.0,0.02099412]
[1733219776410,0.052443,95324.0,95323.0,0.0026]
[1733219776623,0.413243,95324.0,95323.0,0.0026]
[1733219776811,0.57019631,95324.0,95323.0,0.0026]
[1733219777810,0.57119631,95324.0,95323.0,0.0026]
[1733219780318,0.57119631,95324.0,95323.0,0.055044]
[1733219783924,0.57119631,95324.0,95323.0,0.0026]
[1733219786529,0.57119631,95324.0,95323.0,0.055044]
[1733219788541,0.57119631,95324.0,95323.0,0.0026]
[1733219789338,0.57119631,95324.0,95323.0,0.055044]
[1733219791649,0.57119631,95324.0,95323.0,0.0026]
[1733219794148,0.57119631,95324.0,95323.0,0.055044]
[1733219797747,0.93199631,95324.0,95323.0,0.055044]
[1733219802253,0.87955331,95324.0,95323.0,0.055044]
[1733219802457,0.7226,95324.0,95323.0,0.183844]
[1733219805459,0.3618,95324.0,95323.0,0.183844]
[1733219807363,0.3628,95324.0,95323.0,0.183844]
[1733219807762,0.3628,95324.0,95323.0,0.183804]
[1733219812652,0.3628,95324.0,95323.0,0.20479606]
[1733219816161,0.415243,95324.0,95323.0,0.20479606]
[1733219817365,0.3628,95324.0,95323.0,0.20479606]
[1733219818653,0.415243,95324.0,95323.0,0.055044]
[1733219827159,0.415243,95324.0,95323.0,0.05609752]
[1733219829561,0.415243,95324.0,95323.0,0.00365352]
[1733219833479,0.478243,95324.0,95323.0,0.00365352]
[1733219834575,0.63505696,95324.0,95323.0,0.00365352]
[1733219837869,0.63505696,95324.0,95323.0,0.00423988]
[1733219838483,0.415243,95324.0,95323.0,0.05668288]
[1733219839979,0.415243,95324.0,95323.0,0.18540288]
[1733219841680,0.3628,95324.0,95323.0,0.18540288]
[1733219853893,0.3628,95324.0,95323.0,0.20639613]
[1733219854685,0.3628,95324.0,95323.0,0.20641347]
[1733219858089,0.3628,95324.0,95323.0,0.07769347]
[1733219858288,0.3628,95324.0,95323.0,0.20637347]
[1733219865597,0.3628,95324.0,95323.0,0.20633347]
[1733219873503,0.3628,95324.0,95323.0,0.07769347]
[1733219873711,0.3628,95324.0,95323.0,0.20633347]
[1733219882010,0.3628,95324.0,95323.0,0.07769347]
[1733219882211,0.3628,95324.0,95323.0,0.20633347]
[1733219898923,0.415243,95324.0,95323.0,0.07769347]
[1733219899119,0.415243,95324.0,95323.0,0.00425722]
[1733219901025,0.57319858,95324.0,95323.0,0.00425722]
[1733219902530,0.60599858,95324.0,95323.0,0.00425722]
[1733219911123,0.57319858,95324.0,95323.0,0.00425722]
[1733219923042,0.57319858,95324.0,95323.0,0.05670022]
[1733219923438,0.57319858,95324.0,95323.0,0.00425722]
[1733219925745,0.57319858,95324.0,95323.0,0.05670022]
[1733219926234,0.57319858,95324.0,95323.0,0.00425722]
[1733219928955,0.57319858,95324.0,95323.0,0.05670022]
[1733219929341,0.52075558,95324.0,95323.0,0.05670022]
[1733219935048,0.57319858,95324.0,95323.0,0.05670022]
[1733219935551,0.57319858,95324.0,95323.0,0.18526022]
[1733219944748,0.57319858,95324.0,95323.0,0.13281722]
[1733219945160,0.57319858,95324.0,95323.0,0.18526022]
[1733219951855,0.52075558,95324.0,95323.0,0.18526022]
[1733219952861,0.3628,95324.0,95323.0,0.18526022]
[1733219956574,0.3628,95324.0,95323.0,0.18522022]
[1733219960272,0.3628,95324.0,95323.0,0.05670022]
[1733219960468,0.3628,95324.0,95323.0,0.18522022]
[1733219970778,0.3608,95333.0,95332.0,0.052438]
[1733219970973,0.00417393,95344.0,95343.0,0.052432]
[1733219970974,0.00157393,95344.0,95343.0,0.052432]
[1733219971165,0.00157393,95344.0,95343.0,0.180952]
[1733219971474,0.00157393,95344.0,95343.0,0.18260922]
[1733219972173,0.00357393,95344.0,95343.0,0.18360922]
[1733219973681,0.00957393,95344.0,95343.0,0.18460922]
[1733219975169,0.008,95344.0,95343.0,0.21474339]
[1733219979482,0.008,95344.0,95343.0,0.21470339]
[1733219979678,0.008,95344.0,95343.0,0.57550339]
[1733219979885,0.3608,95362.0,95343.0,0.57550339]
[1733219980077,0.3608,95362.0,95361.0,0.052422]
[1733219980281,0.3608,95362.0,95361.0,0.18255922]
[1733219980480,0.51789064,95362.0,95361.0,0.05407922]
[1733219980684,0.51789064,95362.0,95361.0,0.18255922]
[1733219981473,0.52389064,95362.0,95361.0,0.18255922]
[1733219981677,0.52389064,95362.0,95361.0,0.05507922]
[1733219981886,0.57631164,95362.0,95361.0,0.21284672]
[1733219982082,0.52389064,95362.0,95361.0,0.21284672]
[1733219982782,0.52389064,95362.0,95361.0,0.08436672]
[1733219982978,0.51789064,95362.0,95361.0,0.21284672]
[1733219983180,0.52689064,95362.0,95361.0,0.21384672]
[1733219983693,0.57931164,95362.0,95361.0,0.21384672]
[1733219983988,0.57931164,95362.0,95361.0,0.08536672]
[1733219984188,0.57931164,95362.0,95361.0,0.21384672]
[1733219984581,0.57931164,95362.0,95361.0,0.16142472]
[1733219984786,0.57931164,95362.0,95361.0,0.13213722]
[1733219985087,0.57931164,95362.0,95361.0,0.00365722]
[1733219985384,0.57931164,95362.0,95361.0,0.05607922]
[1733219986980,0.57331164,95362.0,95361.0,0.05507922]
[1733219987573,0.57031164,95362.0,95361.0,0.00265722]
[1733219987779,0.57331164,95362.0,95361.0,0.00265722]
[1733219988181,0.57331164,95362.0,95361.0,0.00165722]
[1733219988881,0.57331164,95362.0,95361.0,0.00265722]
[1733219989283,0.60285348,95362.0,95361.0,0.00265722]
[1733219989593,0.60485348,95362.0,95361.0,0.00265722]
[1733219990086,0.60485348,95362.0,95356.0,0.0026]
[1733219990087,0.052424,95357.0,95356.0,0.0026]
[1733219990284,0.052425,95356.0,95355.0,0.1284]
[1733219990784,0.157418,95356.0,95354.0,0.02891285]
[1733219991086,0.052425,95355.0,95354.0,0.1284]
[1733219991383,0.052425,95355.0,95354.0,0.180826]
[1733219991778,0.052425,95355.0,95354.0,0.181826]
[1733219992186,0.052425,95355.0,95354.0,0.053426]
[1733219993789,0.052425,95355.0,95354.0,0.001]
[1733219993993,0.004,95355.0,95353.0,0.05047958]
[1733219994195,0.057425,95355.0,95354.0,0.001]
[1733219995293,0.052426,95354.0,95353.0,0.02198794]
[1733219995696,0.052426,95354.0,95353.0,0.07341394]
[1733219996492,0.052427,95352.0,95351.0,0.131]
[1733219996694,0.052427,95352.0,95314.0,0.052447]
[1733219996695,0.05243,95347.0,95346.0,0.05503]
[1733219996890,0.41323,95347.0,95346.0,0.18083]
[1733219997196,0.41323,95347.0,95346.0,0.20984164]
[1733219997392,0.41323,95347.0,95341.0,0.0026]
[1733219997588,0.413232,95342.0,95341.0,0.0026]
[1733219997798,0.052435,95338.0,95337.0,0.052435]
[1733219999004,0.052435,95338.0,95337.0,0.08171242]
[1733219999402,0.052435,95338.0,95337.0,0.02927742]
[1733219999593,0.052435,95337.0,95336.0,0.0026]
[1733219999796,0.052438,95332.0,95331.0,0.0026]
[1733219999998,0.052438,95332.0,95327.0,0.02098767]
[1733219999999,0.3608,95332.0,95327.0,0.02098767]
[1733220000300,0.05244,95328.0,95327.0,0.02098767]
[1733220000697,0.21040949,95328.0,95327.0,0.02098767]
[1733220001300,0.052441,95327.0,95326.0,0.0026]
[1733220001610,0.052443,95322.0,95321.0,0.055044]
[1733220001810,0.413243,95322.0,95321.0,0.052444]
[1733220002605,0.3608,95322.0,95321.0,0.052444]
[1733220002808,0.413243,95322.0,95321.0,0.053444]
[1733220004413,0.413243,95322.0,95321.0,0.07443974]
[1733220005212,0.3608,95322.0,95321.0,0.07443974]
[1733220007619,0.3608,95322.0,95321.0,0.20287974]
[1733220008013,0.41325,95341.0,95323.0,0.052443]
[1733220008014,0.3608,95331.0,95323.0,0.052443]
[1733220008210,0.3608,95331.0,95330.0,0.052439]
[1733220008717,0.3608,95331.0,95330.0,0.180879]
[1733220009918,0.3628,95331.0,95330.0,0.180879]
[1733220010716,0.3608,95331.0,95330.0,0.180879]
[1733220010917,0.3618,95331.0,95330.0,0.180879]
[1733220011518,0.3618,95331.0,95330.0,0.21051923]
[1733220013716,0.3608,95331.0,95330.0,0.21051923]
[1733220015713,0.3608,95331.0,95330.0,0.21351923]
[1733220016313,0.3608,95331.0,95330.0,0.21051923]
[1733220016720,0.3608,95331.0,95330.0,0.21451923]
[1733220017116,0.3608,95331.0,95330.0,0.21051923]
[1733220017319,0.3608,95331.0,95330.0,0.21551923]
[1733220017515,0.3608,95341.0,95340.0,0.052434]
[1733220019425,0.3608,95341.0,95340.0,0.08232199]
[1733220020022,0.3608,95341.0,95340.0,0.11242199]
[1733220020520,0.3608,95341.0,95340.0,0.11342199]
[1733220029930,0.3608,95341.0,95340.0,0.11242199]
[1733220030126,0.3608,95341.0,95340.0,0.24178199]
[1733220031730,0.0314,95353.0,95352.0,0.052427]
[1733220032031,0.0314,95353.0,95352.0,0.180787]
[1733220033531,0.003,95353.0,95352.0,0.180787]
[1733220034235,0.003,95353.0,95352.0,0.20995001]
[1733220035350,0.0306,95365.0,95364.0,0.05242]
[1733220035535,0.0306,95365.0,95364.0,0.18078]
[1733220036021,0.3608,95378.0,95364.0,0.18078]
[1733220036022,0.3608,95378.0,95377.0,0.052413]
[1733220036227,0.3608,95378.0,95377.0,0.180773]
[1733220036527,0.51743511,95378.0,95377.0,0.180773]
[1733220037628,0.51743511,95378.0,95377.0,0.21162813]
[1733220039337,0.52143511,95378.0,95377.0,0.21262813]
[1733220042633,0.51743511,95378.0,95377.0,0.21162813]
[1733220042835,0.51743511,95378.0,95377.0,0.08326813]
[1733220043038,0.3668,95378.0,95377.0,0.21262813]
[1733220044237,0.3668,95378.0,95377.0,0.21162813]
[1733220044734,0.3608,95378.0,95377.0,0.21062813]
[1733220047038,0.3608,95378.0,95377.0,0.21162813]
[1733220047442,0.3608,95378.0,95377.0,0.21062813]
[1733220047641,0.3608,95378.0,95377.0,0.21162813]
[1733220048236,0.3608,95378.0,95377.0,0.21262813]
[1733220049035,0.3608,95378.0,95377.0,0.08326813]
[1733220049237,0.3608,95378.0,95377.0,0.23453106]
[1733220049437,0.3608,95378.0,95377.0,0.10625106]
[1733220049742,0.3608,95378.0,95377.0,0.10525106]
[1733220049943,0.3608,95378.0,95377.0,0.23353106]
[1733220050439,0.3608,95378.0,95377.0,0.10525106]
[1733220050743,0.3608,95378.0,95377.0,0.23353106]
[1733220051744,0.3608,95378.0,95377.0,0.23253106]
[1733220051935,0.3608,95378.0,95377.0,0.23453106]
[1733220052635,0.3608,95378.0,95377.0,0.23253106]
[1733220052929,0.3608,95378.0,95377.0,0.23453106]
[1733220053342,0.3608,95378.0,95377.0,0.23353106]
[1733220053940,0.3608,95378.0,95377.0,0.23453106]
[1733220054334,0.3608,95378.0,95377.0,0.23253106]
[1733220054536,0.3608,95378.0,95377.0,0.23353106]
[1733220055541,0.0619,95395.0,95385.0,0.052409]
[1733220055542,0.0305,95394.0,95385.0,0.052409]
[1733220055738,0.0305,95394.0,95393.0,0.052405]
[1733220058842,0.0325,95394.0,95393.0,0.052405]
[1733220060538,0.0305,95394.0,95393.0,0.052405]
[1733220060739,0.0325,95394.0,95393.0,0.052405]
[1733220061945,0.0325,95394.0,95393.0,0.08144097]
[1733220065149,0.0325,95394.0,95393.0,0.20968097]
[1733220069655,0.0325,95394.0,95393.0,0.23065967]
[1733220071254,0.0619,95395.0,95394.0,0.052404]
[1733220071555,0.3608,95396.0,95395.0,0.052404]
[1733220072149,0.1,95400.0,95399.0,0.052402]
[1733220073366,0.1,95400.0,95399.0,0.053402]
[1733220074162,0.104,95400.0,95399.0,0.053402]
[1733220080660,0.104,95400.0,95399.0,0.181562]
[1733220081967,0.03950796,95400.0,95399.0,0.181562]
[1733220083550,0.00157278,95414.0,95413.0,0.052394]
[1733220083756,0.00157278,95414.0,95413.0,0.180554]
[1733220086056,0.00157278,95414.0,95413.0,0.20952986]
[1733220086865,0.00157278,95414.0,95413.0,0.21152986]
[1733220087258,0.00157278,95414.0,95413.0,0.08336986]
[1733220087451,0.00157278,95414.0,95413.0,0.21152986]
[1733220088963,0.00157278,95414.0,95413.0,0.08336986]
[1733220089158,0.00157278,95414.0,95413.0,0.21152986]
[1733220090459,0.00157278,95414.0,95413.0,0.20952986]
[1733220093064,0.00157278,95414.0,95413.0,0.08136986]
[1733220093262,0.00157278,95414.0,95413.0,0.20952986]
[1733220097367,0.00157278,95414.0,95413.0,0.23050399]
[1733220101671,0.3608,95418.0,95413.0,0.17810999]
[1733220101869,0.3608,95418.0,95417.0,0.052392]
[1733220101870,0.413191,95418.0,95417.0,0.052392]
[1733220103676,0.414191,95418.0,95417.0,0.052392]
[1733220105284,0.51850109,95418.0,95408.0,0.0315262]
[1733220105469,0.51850109,95418.0,95408.0,0.2120822]
[1733220105470,0.413196,95409.0,95408.0,0.2120822]
[1733220105671,0.413196,95409.0,95408.0,0.0813222]
[1733220111185,0.3608,95409.0,95408.0,0.0813222]
[1733220111593,0.3608,95409.0,95408.0,0.2094022]
[1733220113984,0.3608,95409.0,95408.0,0.2104022]
[1733220116581,0.3608,95409.0,95408.0,0.20980513]
[1733220120178,0.3608,95409.0,95408.0,0.08172513]
[1733220133203,0.3608,95409.0,95408.0,0.08472513]
[1733220133796,0.3608,95409.0,95408.0,0.08372513]
[1733220133997,0.3608,95409.0,95408.0,0.08572513]
[1733220134694,0.3608,95409.0,95408.0,0.08272513]
[1733220134899,0.3608,95409.0,95408.0,0.08572513]
[1733220139197,0.3608,95409.0,95408.0,0.08672513]
[1733220139800,0.3608,95409.0,95408.0,0.21176513]
[1733220140005,0.3608,95409.0,95408.0,0.21376513]
[1733220140200,0.3608,95409.0,95408.0,0.08372513]
[1733220140697,0.413196,95409.0,95408.0,0.003]
[1733220141107,0.413196,95409.0,95408.0,0.002]
[1733220141403,0.51812415,95409.0,95403.0,0.0026]
[1733220141607,0.413199,95404.0,95403.0,0.054999]
[1733220141810,0.413199,95404.0,95403.0,0.08130454]
[1733220143204,0.413199,95404.0,95403.0,0.052399]
[1733220144014,0.413199,95404.0,95403.0,0.053399]
[1733220144406,0.413199,95404.0,95403.0,0.055399]
[1733220147810,0.3608,95404.0,95403.0,0.055399]
[1733220149107,0.413199,95404.0,95403.0,0.055399]
[1733220151313,0.3608,95404.0,95403.0,0.055399]
[1733220163021,0.3608,95411.0,95410.0,0.052396]
[1733220163215,0.3608,95411.0,95410.0,0.180436]
[1733220165715,0.3608,95411.0,95410.0,0.181436]
[1733220167118,0.94702243,95411.0,95390.0,0.0105]
[1733220167321,0.94702243,95411.0,95385.0,1e-08]
[1733220167322,0.052409,95387.0,95385.0,1e-08]
[1733220167621,0.7216,95394.0,95385.0,1e-08]
[1733220167622,0.3608,95386.0,95385.0,1e-08]
[1733220169421,0.3608,95386.0,95385.0,0.00600001]
[1733220170129,0.3608,95386.0,95385.0,0.01000001]
[1733220175124,0.51910334,95386.0,95385.0,0.01000001]
[1733220180228,0.51910334,95386.0,95385.0,0.00300001]
[1733220182635,0.57151234,95386.0,95385.0,0.00300001]
[1733220185333,0.57151234,95386.0,95385.0,0.03182076]
[1733220186736,0.57151234,95386.0,95385.0,0.08423076]
[1733220187138,0.51910334,95386.0,95385.0,0.08423076]
[1733220188737,0.3608,95386.0,95385.0,0.08423076]
[1733220189238,0.0105,95389.0,95388.0,0.052408]
[1733220190126,0.021,95390.0,95389.0,0.052408]
[1733220191526,0.021,95390.0,95389.0,0.056408]
[1733220192130,0.021,95390.0,95389.0,0.052408]
[1733220192333,0.021,95390.0,95389.0,0.054408]
[1733220193136,0.021,95390.0,95389.0,0.060408]
[1733220193634,0.021,95390.0,95389.0,0.057408]
[1733220193843,0.021,95390.0,95389.0,0.055408]
[1733220194032,0.021,95390.0,95389.0,0.059408]
[1733220194833,0.021,95390.0,95389.0,0.057408]
[1733220198748,0.021,95390.0,95389.0,0.054108]
[1733220199337,1e-08,95392.0,95391.0,0.052407]
[1733220199535,1e-08,95392.0,95391.0,0.180367]
[1733220200537,1e-08,95392.0,95391.0,0.182367]
[1733220200839,0.3608,95406.0,95391.0,0.182367]
[1733220200840,0.3608,95406.0,95393.0,0.052406]
[1733220202836,0.3608,95406.0,95393.0,0.053406]
[1733220203439,0.3608,95406.0,95393.0,0.054406]
[1733220204046,0.0524,95404.0,95393.0,0.182366]
[1733220204349,0.052403,95399.0,95393.0,0.182366]
[1733220204843,0.3608,95406.0,95393.0,0.054406]
[1733220204844,0.052402,95401.0,95393.0,0.054406]
[1733220205050,0.3608,95406.0,95393.0,0.054406]
[1733220205341,0.3608,95406.0,95393.0,0.182366]
[1733220205342,0.052403,95397.0,95393.0,0.182366]
[1733220205548,0.031,95405.0,95393.0,0.182366]
[1733220205851,0.083604,95396.0,95393.0,0.054406]
[1733220206037,0.0312,95396.0,95393.0,0.182366]
[1733220206444,0.0312,95396.0,95393.0,0.180366]
[1733220206647,0.0312,95396.0,95393.0,0.184366]
[1733220207139,0.0312,95396.0,95393.0,0.183366]
[1733220207537,0.0312,95396.0,95393.0,0.182366]
[1733220209441,0.413205,95394.0,95393.0,0.182366]
[1733220209846,0.413205,95394.0,95393.0,0.054406]
[1733220210043,0.413205,95394.0,95393.0,0.182366]
[1733220210250,0.3608,95394.0,95393.0,0.182366]
[1733220211639,0.3608,95394.0,95393.0,0.20334513]
[1733220213047,0.413205,95394.0,95393.0,0.20334513]
[1733220214045,0.413205,95394.0,95393.0,0.02297913]
[1733220214251,0.413205,95394.0,95393.0,0.12996]
[1733220215042,0.413205,95394.0,95393.0,0.054406]
[1733220217652,0.413205,95394.0,95393.0,0.002]
[1733220218153,0.413205,95394.0,95393.0,0.054406]
[1733220228665,0.3608,95394.0,95393.0,0.054406]
[1733220230965,0.3608,95394.0,95393.0,0.182326]
[1733220237274,0.413205,95394.0,95393.0,0.182326]
[1733220239174,0.413205,95394.0,95393.0,0.12992]
[1733220239375,0.413205,95394.0,95393.0,0.15089942]
[1733220239983,0.413205,95394.0,95393.0,0.20330542]
[1733220245874,0.413205,95394.0,95393.0,0.02297942]
[1733220246075,0.56958666,95394.0,95393.0,0.002]
[1733220252587,0.20878666,95394.0,95393.0,0.002]
[1733220252789,0.93038666,95394.0,95393.0,0.002]
[1733220258898,0.93038666,95394.0,95393.0,0.054406]
[1733220259288,0.93038666,95394.0,95393.0,0.002]
[1733220268203,0.93038666,95394.0,95393.0,0.054406]
[1733220270400,0.93038666,95394.0,95393.0,0.002]
[1733220286612,0.87400071,95394.0,95393.0,0.002]
[1733220287714,0.92640571,95394.0,95393.0,0.002]
[1733220296611,0.92640571,95394.0,95393.0,0.054405]
[1733220301821,0.92640571,95394.0,95393.0,0.054404]
[1733220303326,0.92640571,95394.0,95393.0,0.002]
[1733220304830,0.90280238,95394.0,95393.0,0.002]
[1733220308325,0.85039738,95394.0,95393.0,0.054405]
[1733220310132,0.7216,95394.0,95393.0,0.054405]
[1733220310430,0.7216,95394.0,95393.0,0.182205]
[1733220313918,0.3608,95394.0,95393.0,0.182205]
[1733220320428,0.3608,95394.0,95393.0,0.20318348]
[1733220320634,0.3634,95408.0,95407.0,0.052394]
[1733220320822,0.3608,95408.0,95407.0,0.052394]